bitfinex/quotes_SOLUSD_20240718
["timestamp","ask_amount","ask_price","bid_price","bid_amount"]
[1721278971905,12.34,158.16,158.15,67.1306]
[1721278972612,12.34,158.16,158.12,15.8107]
[1721278972790,12.34,158.13,158.12,15.8107]
[1721278974317,1.580955,158.16,158.12,67.135]
[1721278974609,12.34,158.13,158.12,67.135]
[1721278976012,12.34,158.14,158.13,6.3238]
[1721278976215,12.34,158.14,158.13,51.3238]
[1721278976415,12.34,158.14,158.13,45.0]
[1721278977617,12.34,158.14,158.08,15.8138]
[1721278977821,12.34,158.1,158.09,6.3255]
[1721278978196,12.34,158.11,158.1,6.3251]
[1721278978914,12.34,158.11,158.1,51.3251]
[1721278979723,1.58087483,158.15,158.1,51.3251]
[1721278979905,12.34,158.11,158.1,51.3251]
[1721278981021,12.34,158.11,158.1,45.0]
[1721278981194,12.34,158.11,158.09,45.0]
[1721278981403,12.34,158.1,158.09,51.3254]
[1721278982018,12.34,158.11,158.1,6.325]
[1721278982213,12.34,158.11,158.1,51.325]
[1721278991901,12.34,158.12,158.1,45.0]
[1721278992105,12.34,158.12,158.11,51.3247]
[1721278992819,12.34,158.12,158.11,67.1364]
[1721278993023,12.34,158.12,158.11,60.8117]
[1721278993198,12.34,158.12,158.11,45.0]
[1721278993405,12.34,158.12,158.1,45.0]
[1721278993829,12.34,158.11,158.1,45.0]
[1721278996230,12.34,158.11,158.1,51.3251]
[1721278996905,12.34,158.11,158.1,45.0]
[1721278997106,12.34,158.11,158.1,51.3251]
[1721279000812,12.34,158.12,158.11,6.3246]
[1721279001035,12.34,158.13,158.11,51.78385302]
[1721279001340,12.34,158.13,158.12,45.0]
[1721279002706,1.58096576,158.17,158.13,6.3235]
[1721279002911,12.34,158.16,158.14,45.45854551]
[1721279004240,12.34,158.15,158.14,45.0]
[1721279006523,18.6634,158.15,158.1,6.325]
[1721279006816,18.6634,158.15,158.08,15.8145]
[1721279006817,12.34,158.11,158.05,25.2316]
[1721279007036,1.58141737,158.1,158.06,6.3263]
[1721279007335,1.58141737,158.1,158.04,22.1449]
[1721279007336,12.34,158.07,158.04,22.1449]
[1721279007821,12.34,158.06,158.04,22.1449]
[1721279008640,12.34,158.05,158.04,15.8178]
[1721279009743,12.34,158.05,158.04,67.1453]
[1721279009919,12.34,158.07,158.04,60.8178]
[1721279010120,12.34,158.07,158.05,45.0]
[1721279011020,12.34,158.07,158.06,6.3264]
[1721279011220,12.34,158.07,158.06,51.3264]
[1721279011440,1.5816458,158.11,158.07,15.8155]
[1721279011649,12.34,158.09,158.08,51.78559833]
[1721279011946,12.34,158.1,158.09,6.3254]
[1721279012119,12.34,158.1,158.09,51.3254]
[1721279012719,1.58123424,158.15,158.11,6.3244]
[1721279013041,12.34,158.13,158.12,45.0]
[1721279014631,12.34,158.13,158.11,45.0]
[1721279014835,12.34,158.12,158.11,45.0]
[1721279015350,12.34,158.12,158.08,6.3257]
[1721279015556,12.34,158.09,158.08,6.3257]
[1721279015854,12.34,158.09,158.06,22.1423]
[1721279016035,12.34,158.07,158.06,22.1423]
[1721279017031,12.34,158.07,158.03,15.8196]
[1721279017251,12.34,158.04,158.01,6.3286]
[1721279017427,12.34,158.02,158.01,6.3286]
[1721279019846,12.34,158.02,158.01,51.3286]
[1721279020760,12.34,158.02,158.01,45.0]
[1721279020962,12.34,158.02,158.0,45.46156725]
[1721279021340,12.34,158.03,158.02,6.328]
[1721279021551,12.34,158.03,158.02,51.328]
[1721279024860,12.34,158.03,158.02,45.0]
[1721279025866,12.34,158.04,158.02,51.78983138]
[1721279026062,12.34,158.04,158.03,45.0]
[1721279026251,12.34,158.05,158.03,45.0]
[1721279028145,1.58177074,158.12,158.04,0.46112578]
[1721279028457,12.34,158.07,158.04,0.46112578]
[1721279028663,12.34,158.06,158.03,45.0]
[1721279028846,12.34,158.05,158.03,45.0]
[1721279029349,12.34,158.05,158.03,51.78868234]
[1721279029663,12.34,158.06,158.04,6.3274]
[1721279029866,12.34,158.06,158.05,45.46075744]
[1721279030771,12.34,158.06,158.05,45.0]
[1721279032866,12.34,158.06,158.04,45.0]
[1721279033465,12.34,158.05,158.04,45.0]
[1721279033668,12.34,158.05,157.99,50.6775]
[1721279033669,12.34,158.05,157.99,10.0]
[1721279033873,13.9216233,158.08,157.98,15.8247]
[1721279033874,12.34,158.01,157.98,15.8247]
[1721279034381,12.34,158.0,157.98,15.8247]
[1721279034546,12.34,158.01,157.98,15.8247]
[1721279034742,12.34,158.01,157.99,6.3295]
[1721279034977,12.34,158.0,157.98,22.1544]
[1721279035161,12.34,157.99,157.95,25.8276]
[1721279035472,12.34,157.98,157.97,6.3303]
[1721279035648,12.34,157.99,157.97,6.3303]
[1721279035849,12.34,157.98,157.95,22.1586]
[1721279036078,12.34,157.96,157.95,15.8276]
[1721279037149,12.34,157.96,157.93,6.3319]
[1721279037351,12.34,157.94,157.93,6.3319]
[1721279039157,12.34,157.95,157.94,6.3314]
[1721279039387,12.34,157.95,157.94,45.0]
[1721279039762,12.34,157.95,157.93,45.0]
[1721279039979,12.34,157.94,157.93,45.0]
[1721279040460,12.34,157.94,157.93,51.3319]
[1721279041983,12.34,157.95,157.94,6.3313]
[1721279042181,12.34,157.95,157.94,51.3313]
[1721279043076,1.58275179,157.98,157.95,6.3308]
[1721279043283,12.34,157.96,157.95,45.0]
[1721279044675,12.34,157.96,157.94,45.0]
[1721279044887,12.34,157.95,157.94,45.0]
[1721279052590,15.2786,157.94,157.89,15.8331]
[1721279052794,12.34,157.9,157.86,6.3343]
[1721279053004,12.34,157.92,157.86,6.3347]
[1721279053005,12.34,157.87,157.86,6.3347]
[1721279053288,1.58335103,157.91,157.87,6.3341]
[1721279053289,12.34,157.88,157.87,6.3341]
[1721279055212,12.34,157.88,157.86,6.3346]
[1721279055399,12.34,157.87,157.86,6.3346]
[1721279055597,12.34,157.87,157.86,51.3346]
[1721279056505,1.58335103,157.91,157.86,45.0]
[1721279056696,15.2786,157.94,157.88,15.8346]
[1721279056697,12.34,157.9,157.88,15.8346]
[1721279056902,12.34,157.9,157.89,45.0]
[1721279060291,12.34,157.9,157.88,45.0]
[1721279060485,12.34,157.89,157.88,45.0]
[1721279060728,12.34,157.89,157.87,45.0]
[1721279061015,12.34,157.88,157.87,45.0]
[1721279061822,7.91558009,157.92,157.87,51.3343]
[1721279062007,12.34,157.89,157.87,51.3343]
[1721279063802,15.2786,157.94,157.87,45.46484799]
[1721279063988,12.34,157.91,157.87,45.46484799]
[1721279064309,12.34,157.91,157.89,22.1664]
[1721279064512,12.34,157.91,157.9,45.0]
[1721279065408,18.6727,157.91,157.9,45.0]
[1721279065616,7.91544146,157.93,157.9,45.0]
[1721279065796,12.34,157.91,157.9,45.0]
[1721279067494,18.6727,157.91,157.86,22.1713]
[1721279067698,12.34,157.87,157.86,15.8367]
[1721279067898,34.7606,157.87,157.76,31.692]
[1721279068234,12.34,157.79,157.77,6.3383]
[1721279068431,12.34,157.79,157.77,22.1837]
[1721279069298,1.58436748,157.83,157.77,25.8454]
[1721279070605,1.58436748,157.83,157.78,45.0]
[1721279071003,22.4206,157.87,157.8,15.8423]
[1721279071205,12.34,157.83,157.81,45.46638808]
[1721279071508,12.34,157.83,157.82,6.3363]
[1721279071819,12.34,157.83,157.82,45.0]
[1721279073125,12.34,157.83,157.82,51.3363]
[1721279073311,12.34,157.84,157.82,51.3363]
[1721279073510,12.34,157.84,157.83,45.0]
[1721279074933,12.34,157.85,157.83,45.0]
[1721279075743,1.58378765,157.88,157.83,45.0]
[1721279075908,12.34,157.85,157.83,45.0]
[1721279076112,12.34,157.84,157.83,45.0]
[1721279079633,12.34,157.84,157.83,51.3359]
[1721279079799,6.3335,157.89,157.84,6.3352]
[1721279080004,12.34,157.86,157.85,45.0]
[1721279083929,12.34,157.86,157.85,51.3351]
[1721279084129,12.34,157.86,157.85,45.0]
[1721279087622,12.34,157.86,157.82,22.176]
[1721279087938,12.34,157.83,157.82,22.176]
[1721279088632,12.34,157.83,157.82,15.8398]
[1721279088825,12.34,157.83,157.82,60.8398]
[1721279089420,12.34,157.83,157.82,45.0]
[1721279090024,12.34,157.83,157.81,45.0]
[1721279090219,7.91902425,157.85,157.81,45.0]
[1721279090542,12.34,157.82,157.81,45.0]
[1721279093145,12.34,157.82,157.81,51.3367]
[1721279094232,12.34,157.82,157.81,45.0]
[1721279098332,1.58392425,157.85,157.81,51.3367]
[1721279098652,12.34,157.82,157.81,45.0]
[1721279100933,12.34,157.82,157.8,45.0]
[1721279101129,12.34,157.81,157.8,45.0]
[1721279101854,12.34,157.81,157.78,6.3378]
[1721279102029,12.34,157.79,157.78,6.3378]
[1721279102350,12.34,157.8,157.78,6.3378]
[1721279103350,1.584223,157.83,157.79,6.3375]
[1721279103536,15.9542,157.85,157.8,6.80390898]
[1721279103537,12.34,157.81,157.8,6.80390898]
[1721279103742,1.58413874,157.88,157.8,45.46680898]
[1721279104051,6.3343,157.87,157.82,6.3363]
[1721279104245,12.34,157.83,157.81,6.3367]
[1721279104654,1.58376603,157.86,157.82,51.3363]
[1721279104847,12.34,157.83,157.82,51.3363]
[1721279105035,12.34,157.83,157.82,45.0]
[1721279105236,12.34,157.83,157.81,45.0]
[1721279105765,12.34,157.83,157.81,51.3365]
[1721279106266,12.34,157.82,157.81,45.0]
[1721279106452,12.34,157.82,157.81,51.3367]
[1721279107264,12.34,157.83,157.81,51.3367]
[1721279108635,1.58395165,157.88,157.83,6.3358]
[1721279108836,12.34,157.87,157.84,45.46590805]
[1721279109339,12.34,157.87,157.84,51.80130805]
[1721279109849,12.34,157.87,157.85,6.79999557]
[1721279110053,12.34,157.88,157.86,45.0]
[1721279110558,12.34,157.88,157.86,51.3346]
[1721279110756,12.34,157.89,157.87,6.3339]
[1721279111063,12.34,157.9,157.88,45.0]
[1721279112364,24.24293973,157.93,157.88,45.0]
[1721279112561,7.85247745,157.95,157.88,70.8343]
[1721279112734,12.34,157.92,157.9,6.3331]
[1721279113061,12.34,157.92,157.91,45.0]
[1721279114547,12.34,157.93,157.91,45.0]
[1721279115264,13.92297362,157.92,157.9,45.0]
[1721279115466,12.34,157.92,157.89,45.0]
[1721279115788,6.3318,157.94,157.89,6.79779532]
[1721279115946,12.34,157.92,157.9,0.46449532]
[1721279116462,12.34,157.92,157.89,6.3333]
[1721279116841,12.34,157.92,157.9,45.0]
[1721279117834,6.3311,157.95,157.9,45.0]
[1721279118033,12.34,157.93,157.9,6.333]
[1721279118256,12.34,157.94,157.91,45.0]
[1721279118454,12.34,157.94,157.91,45.46398072]
[1721279118968,12.34,157.96,157.92,0.46395643]
[1721279119863,18.6707,157.96,157.92,0.46395643]
[1721279120061,12.34,157.95,157.92,0.46395643]
[1721279121651,18.6707,157.96,157.92,0.46395643]
[1721279121958,12.34,157.96,157.92,16.79615643]
[1721279122150,12.34,157.96,157.93,45.46328528]
[1721279122346,6.3302,157.98,157.94,0.4632924]
[1721279122552,12.34,157.98,157.94,0.4632924]
[1721279122869,12.34,157.98,157.94,10.0]
[1721279123077,12.34,157.99,157.95,45.0]
[1721279123249,6.3294,158.0,157.96,0.46259235]
[1721279123250,12.34,158.0,157.96,0.46259235]
[1721279123553,12.34,158.01,157.97,6.7926716]
[1721279123871,7.9105315,158.03,157.98,45.0]
[1721279124044,7.9105315,158.03,157.99,0.46195525]
[1721279124045,12.34,158.02,157.99,0.46195525]
[1721279125771,12.34,158.02,157.98,61.3297]
[1721279125976,12.34,158.03,157.99,6.3294]
[1721279126171,12.34,158.02,157.98,55.0]
[1721279126473,12.34,158.02,157.98,45.0]
[1721279126655,12.34,158.01,157.98,45.0]
[1721279127165,12.34,158.02,157.98,61.3297]
[1721279128183,12.34,158.02,157.98,55.0]
[1721279129675,12.34,158.02,157.98,61.3297]
[1721279130982,12.34,158.04,157.99,12.80179947]
[1721279131187,12.34,158.04,158.0,45.0]
[1721279131859,12.34,158.04,158.01,0.46153342]
[1721279133961,18.6676,158.04,158.01,0.46153342]
[1721279134478,12.34,158.04,158.01,0.46155462]
[1721279134686,6.3269,158.06,158.01,0.46155462]
[1721279134687,12.34,158.05,158.01,0.46155462]
[1721279135375,12.34,158.05,158.0,73.6689]
[1721279135578,12.34,158.05,158.01,0.46131072]
[1721279136583,12.34,158.06,158.01,12.80131072]
[1721279136892,12.34,158.06,158.02,45.46129854]
[1721279137465,12.34,158.06,158.02,45.0]
[1721279137466,18.6667,158.06,158.02,45.0]
[1721279139882,12.34,158.05,158.02,45.0]
[1721279140391,7.90938273,158.04,157.99,15.8229]
[1721279140574,18.6676,158.04,157.99,15.8229]
[1721279141564,18.6676,158.04,157.99,28.1629]
[1721279141765,12.34,158.04,158.0,51.329]
[1721279141976,12.34,158.06,158.01,0.46157071]
[1721279142271,12.34,158.06,158.02,0.46104436]
[1721279142469,12.34,158.06,158.02,45.0]
[1721279142661,12.34,158.04,158.02,45.0]
[1721279142867,12.34,158.04,158.01,45.0]
[1721279143474,18.6674,158.05,158.01,45.0]
[1721279143675,12.34,158.05,158.01,51.3286]
[1721279143879,13.92189427,158.05,158.01,51.3286]
[1721279144079,12.34,158.05,158.01,51.3286]
[1721279144281,13.92190142,158.05,158.01,51.3286]
[1721279144487,20.24900142,158.05,158.01,45.0]
[1721279144776,12.34,158.05,158.02,0.46147335]
[1721279145096,12.34,158.05,158.01,61.3286]
[1721279146386,6.3262,158.08,158.02,28.62145536]
[1721279146592,1.58191556,158.09,158.04,12.34]
[1721279146789,12.34,158.09,158.05,51.7877328]
[1721279146985,13.92156408,158.09,158.05,45.4606328]
[1721279147297,1.58156408,158.09,158.05,45.0]
[1721279147598,15.2148,158.13,158.03,10.0]
[1721279147599,12.34,158.07,158.04,45.0]
[1721279149382,1.58159952,158.12,158.05,0.46065504]
[1721279149701,12.34,158.09,158.05,0.46065504]
[1721279150292,18.6655,158.09,158.04,63.6674]
[1721279150496,12.34,158.08,158.04,51.3274]
[1721279151382,18.6659,158.08,158.04,45.0]
[1721279151585,12.34,158.07,158.04,45.0]
[1721279151798,18.6659,158.08,158.04,45.0]
[1721279151976,12.34,158.08,158.04,45.0]
[1721279152179,12.34,158.08,158.05,0.46055733]
[1721279153095,12.34,158.09,158.05,16.27825811]
[1721279153401,12.34,158.1,158.06,45.0]
[1721279153778,12.34,158.1,158.07,0.46025585]
[1721279154975,18.6651,158.1,158.07,0.46025585]
[1721279156305,6.3247,158.11,158.07,0.46025585]
[1721279156598,18.6647,158.11,158.07,0.46025585]
[1721279156775,12.34,158.11,158.07,16.78645585]
[1721279156981,12.34,158.11,158.08,45.45970009]
[1721279157388,6.3251,158.1,158.08,45.0]
[1721279157602,18.6651,158.1,158.07,45.0]
[1721279157771,18.6651,158.1,158.06,45.0]
[1721279161408,12.34,158.1,158.06,51.3266]
[1721279161609,12.34,158.11,158.07,6.78620497]
[1721279161804,12.34,158.11,158.08,45.45991153]
[1721279162614,1.58132355,158.14,158.08,45.45991153]
[1721279162615,20.24646711,158.1,158.08,45.0]
[1721279162798,18.6652,158.1,158.08,45.0]
[1721279163882,12.34,158.09,158.08,45.0]
[1721279164294,18.6655,158.09,158.08,45.0]
[1721279165016,12.34,158.09,158.08,45.0]
[1721279166292,20.24691567,158.09,158.05,15.8177]
[1721279166492,12.34,158.07,158.06,45.0]
[1721279166713,12.34,158.07,158.05,45.0]
[1721279167214,12.34,158.07,158.05,51.78770856]
[1721279167388,12.34,158.08,158.05,51.78770856]
[1721279167820,12.34,158.09,158.05,51.78770856]
[1721279169407,12.34,158.07,158.05,45.0]
[1721279169713,12.34,158.06,158.04,45.0]
[1721279171212,12.34,158.06,158.04,51.3274]
[1721279171814,12.34,158.05,158.04,45.0]
[1721279172401,12.34,158.07,158.04,51.3275]
[1721279172933,13.92165204,158.1,158.05,28.6185409]
[1721279173106,12.34,158.1,158.05,28.6185409]
[1721279173297,12.34,158.1,158.06,45.0]
[1721279173794,12.34,158.1,158.07,6.3263]
[1721279174018,12.34,158.1,158.08,45.0]
[1721279174198,12.34,158.1,158.06,51.78688773]
[1721279175122,12.34,158.09,158.06,45.0]
[1721279175422,12.34,158.07,158.0,10.0]
[1721279175624,12.34,158.04,158.0,10.0]
[1721279175929,1.58179715,158.06,158.0,10.0]
[1721279175930,12.34,158.05,158.0,10.0]
[1721279176114,12.34,158.05,157.99,28.7673]
[1721279176319,12.34,158.03,158.0,6.329]
[1721279176505,1.5819101,158.04,158.0,6.329]
[1721279176697,12.34,158.03,158.0,6.329]
[1721279177723,12.34,158.04,158.01,6.3286]
[1721279178828,12.34,158.04,158.02,45.0]
[1721279180001,12.34,158.05,158.02,67.1487]
[1721279180319,12.34,158.05,158.03,0.46124127]
[1721279180721,1.58181886,158.1,158.02,70.8205]
[1721279181020,12.34,158.08,158.04,6.3274]
[1721279181231,12.34,158.08,158.05,51.327]
[1721279181530,12.34,158.09,158.06,0.46044529]
[1721279182904,1.58142237,158.13,158.06,28.6666]
[1721279182905,18.6647,158.11,158.06,28.6666]
[1721279183222,12.34,158.11,158.07,45.0]
[1721279184299,18.6647,158.11,158.07,45.0]
[1721279184499,12.34,158.09,158.07,45.0]
[1721279185309,12.34,158.08,158.07,45.0]
[1721279185930,12.34,158.08,158.06,45.0]
[1721279186115,12.34,158.08,158.05,51.327]
[1721279186320,12.34,158.06,158.05,45.0]
[1721279186705,12.34,158.06,158.04,45.0]
[1721279187331,12.34,158.06,158.05,6.3271]
[1721279187535,12.34,158.08,158.05,51.3271]
[1721279187736,12.34,158.08,158.05,6.3271]
[1721279188029,12.34,158.08,158.06,45.0]
[1721279188530,12.34,158.07,158.06,45.0]
[1721279188730,1.58154845,158.09,158.05,51.327]
[1721279188939,12.34,158.07,158.05,51.327]
[1721279190613,12.34,158.08,158.06,6.3266]
[1721279190824,12.34,158.09,158.07,45.0]
[1721279193718,12.34,158.04,158.02,6.3282]
[1721279194606,1.58184373,158.06,158.03,6.3279]
[1721279194835,12.34,158.05,158.03,6.3279]
[1721279195207,12.34,158.06,158.02,6.3282]
[1721279195518,12.34,158.06,158.03,45.0]
[1721279196743,1.58185294,158.08,158.03,51.3277]
[1721279196958,12.34,158.07,158.04,6.3275]
[1721279197153,21.7782,158.09,158.05,45.0]
[1721279197319,12.34,158.07,158.05,45.0]
[1721279197746,12.34,158.08,158.05,45.0]
[1721279197954,1.58157212,158.11,158.06,16.2771491]
[1721279198119,12.34,158.11,158.07,45.0]
[1721279198323,12.34,158.12,158.08,26.2736716]
[1721279198525,15.7186,158.14,158.09,45.0]
[1721279198526,12.34,158.13,158.09,45.0]
[1721279198736,12.34,158.13,158.1,0.45933666]
[1721279198933,12.34,158.13,158.09,45.0]
[1721279199236,12.34,158.11,158.09,45.0]
[1721279200021,12.34,158.1,158.09,45.0]
[1721279202244,12.34,158.11,158.09,45.0]
[1721279202936,12.34,158.12,158.09,45.0]
[1721279203342,12.34,158.12,158.09,51.7850027]
[1721279203735,12.34,158.12,158.09,51.3254]
[1721279205535,7.90417637,158.15,158.1,6.3249]
[1721279205864,7.90292099,158.18,158.11,45.0]
[1721279206147,12.34,158.15,158.11,45.0]
[1721279206730,12.34,158.15,158.11,51.3243]
[1721279206927,6.3227,158.16,158.11,51.3243]
[1721279207129,12.34,158.15,158.11,51.3243]
[1721279207526,7.90392124,158.15,158.11,45.0]
[1721279207730,12.34,158.14,158.11,45.0]
[1721279207941,12.34,158.13,158.11,45.0]
[1721279208846,12.34,158.14,158.11,45.0]
[1721279209346,6.3226,158.17,158.11,51.3246]
[1721279209654,12.34,158.15,158.11,51.3243]
[1721279209853,12.34,158.15,158.12,6.3242]
[1721279210162,12.34,158.15,158.13,45.0]
[1721279211033,12.34,158.17,158.14,0.45848232]
[1721279211248,12.34,158.18,158.14,0.45848232]
[1721279211754,12.34,158.18,158.15,6.323]
[1721279211939,12.34,158.18,158.16,45.0]
[1721279212451,12.34,158.18,158.15,45.0]
[1721279212664,12.34,158.18,158.15,45.45800314]
[1721279212955,12.34,158.17,158.15,45.0]
[1721279213150,12.34,158.17,158.14,45.0]
[1721279213653,6.3219,158.18,158.14,45.0]
[1721279213654,12.34,158.16,158.14,45.0]
[1721279215342,12.34,158.15,158.1,15.8127]
[1721279215546,12.34,158.11,158.07,10.0]
[1721279215854,12.34,158.11,158.08,6.3258]
[1721279216045,6.3243,158.12,158.07,22.1417]
[1721279216254,12.34,158.1,158.07,22.1417]
[1721279216956,12.34,158.08,158.07,15.8155]
[1721279218137,12.34,158.08,158.07,60.8155]
[1721279218452,1.58146352,158.1,158.07,60.8155]
[1721279218654,1.58138584,158.11,158.08,45.0]
[1721279220239,1.58136565,158.1,158.08,45.0]
[1721279220439,7.90646565,158.1,158.07,45.0]
[1721279220639,7.90646565,158.1,158.06,45.0]
[1721279221359,7.90646565,158.1,158.0,15.8219]
[1721279221360,1.58157964,158.09,158.0,15.8219]
[1721279221664,1.58157964,158.09,158.02,6.3279]
[1721279221665,6.3263,158.07,158.02,6.3279]
[1721279221965,1.58192329,158.06,158.02,6.3279]
[1721279222770,1.58192329,158.06,158.0,15.8219]
[1721279223141,1.58192329,158.06,158.01,6.3283]
[1721279223442,1.58192329,158.06,158.02,6.3281]
[1721279224439,1.58192329,158.06,158.01,6.3286]
[1721279224640,7.90862329,158.06,158.02,45.0]
[1721279224836,1.58192329,158.06,158.02,45.0]
[1721279225251,1.58192329,158.06,158.02,51.3281]
[1721279225969,24.63,158.1,158.03,15.8196]
[1721279226147,7.90725008,158.09,158.04,51.3273]
[1721279229668,6.3259,158.08,158.04,45.0]
[1721279230867,1.58164713,158.11,158.06,15.8167]
[1721279231070,15.8211,158.12,158.07,51.78595017]
[1721279231247,6.3239,158.13,158.08,0.45976588]
[1721279231767,7.90550624,158.12,158.07,51.3259]
[1721279231976,6.3243,158.12,158.07,45.0]
[1721279232269,7.90612973,158.11,158.07,45.0]
[1721279232475,6.3249,158.11,158.07,45.0]
[1721279233077,6.3243,158.12,158.07,45.0]
[1721279235353,7.90598458,158.11,158.07,45.0]
[1721279235560,6.3247,158.11,158.07,45.0]
[1721279236454,6.3242,158.13,158.07,51.3261]
[1721279236657,6.3242,158.13,158.08,6.7854381]
[1721279236860,6.3242,158.13,158.09,45.0]
[1721279237168,6.3235,158.14,158.1,0.45968375]
[1721279237878,6.3235,158.14,158.09,51.3255]
[1721279237879,1.58100884,158.14,158.09,45.0]
[1721279238057,6.3246,158.12,158.09,45.0]
[1721279238372,6.3247,158.11,158.08,45.0]
[1721279238575,6.3247,158.11,158.07,45.0]
[1721279238873,1.58100884,158.14,158.07,51.3262]
[1721279239262,7.90460884,158.14,158.07,45.0]
[1721279239468,6.3236,158.14,158.09,6.3251]
[1721279239672,7.9041525,158.15,158.1,45.45925716]
[1721279239863,7.904088,158.15,158.1,45.45925716]
[1721279240183,1.58103591,158.14,158.1,6.78425716]
[1721279240361,7.90414177,158.15,158.11,45.0]
[1721279240551,6.3231,158.15,158.11,45.0]
[1721279240757,1.58085371,158.17,158.12,0.45892491]
[1721279240958,1.58075,158.18,158.12,0.45892491]
[1721279241158,6.3223,158.17,158.12,6.78302491]
[1721279241366,6.3223,158.17,158.13,45.0]
[1721279241576,6.3223,158.17,158.14,0.45849903]
[1721279242492,1.58063558,158.19,158.14,0.45849903]
[1721279243159,7.90243558,158.19,158.14,6.78189903]
[1721279243355,6.3218,158.19,158.15,45.45826103]
[1721279244060,6.3218,158.19,158.15,45.0]
[1721279244669,6.321,158.21,158.16,0.45779609]
[1721279245097,6.3211,158.2,158.16,0.45779609]
[1721279245781,6.3211,158.2,158.16,0.45779398]
[1721279246669,6.3211,158.2,158.16,10.0]
[1721279246873,6.3211,158.2,158.17,45.45779031]
[1721279247083,6.3211,158.2,158.17,45.0]
[1721279247274,6.3216,158.19,158.16,45.0]
[1721279248768,6.3211,158.2,158.16,55.0]
[1721279249087,1.58027041,158.23,158.18,6.3217]
[1721279249297,1.58013909,158.23,158.19,45.45720982]
[1721279249664,1.58013909,158.23,158.19,0.45720982]
[1721279250166,6.3209,158.21,158.18,45.0]
[1721279250479,6.3209,158.21,158.17,45.45746335]
[1721279251188,1.58013909,158.23,158.17,45.45746335]
[1721279251189,6.3203,158.22,158.17,45.45746335]
[1721279251491,6.3203,158.22,158.18,0.45743861]
[1721279252158,6.3203,158.22,158.17,45.0]
[1721279252369,6.3207,158.21,158.17,45.0]
[1721279253689,6.3203,158.22,158.17,45.0]
[1721279254471,6.3199,158.23,158.18,10.0]
[1721279254677,6.3199,158.23,158.19,45.0]
[1721279254866,6.3199,158.23,158.2,0.45696469]
[1721279255066,6.3199,158.23,158.19,45.0]
[1721279255673,6.3195,158.24,158.2,0.45696185]
[1721279256266,6.3201,158.23,158.2,0.45696185]
[1721279257496,6.3203,158.22,158.19,45.0]
[1721279258292,6.3203,158.22,158.2,0.45700045]
[1721279258691,6.3203,158.22,158.19,45.0]
[1721279259292,6.3203,158.22,158.18,55.0]
[1721279260285,12.29,158.21,158.18,45.0]
[1721279260797,12.29,158.2,158.18,45.0]
[1721279261898,12.29,158.2,158.18,45.45741892]
[1721279262299,12.29,158.2,158.18,45.0]
[1721279262686,12.29,158.19,158.18,45.0]
[1721279263199,12.29,158.19,158.14,22.1317]